[Event "Romanian Team Blitz Open 2022"]
[Site "Sebes"]
[Date "2022.12.04"]
[Round "6.32"]
[White "Carac, Radu-Ionut"]
[Black "Tarciuc, Ianis-Mihai"]
[Result "0-1"]
[ECO "E94"]
[WhiteElo "1569"]
[BlackElo "1642"]
[Annotator "NA RC COMBH"]
[PlyCount "42"]
[EventDate "2022.12.04"]
[EventType "blitz"]
[EventCountry "ROU"]
[SourceTitle "playchess.com"]
[Source "ChessBase"]
[SourceQuality "1"]
[TimeControl "180+2"]

1. d4 {[%emt 0:00:01]} Nf6 {[%emt 0:00:03]} 2. c4 {[%emt 0:00:01]} g6 {[%emt 0:00:01]} 3. Nc3 {[%emt 0:00:01]} Bg7 {[%emt 0:00:01]} 4. e4 {[%emt 0:00:02]} d6 {[%emt 0:00:01]} 5. Be2 {[%emt 0:00:01]} O-O {[%emt 0:00:04]} 6. Nf3 {[%emt 0:00:02]} Nbd7 {[%emt 0:00:03]} 7. O-O {[%emt 0:00:02]} e5 {[%emt 0:00:28]} 8. d5 {[%emt 0:00:01]} a5 {[%emt 0:00:13]} 9. b3 {[%emt 0:00:02]} Nc5 {[%emt 0:00:03]} 10. Qc2 {[%emt 0:00:02]} Ne8 {[%emt 0:00:08]} 11. a3 {[%emt 0:00:02]} f5 {[%emt 0:00:03]} 12. Nd2 {[%emt 0:00:02]} Nf6 {[%emt 0:00:05]} 13. f3 {[%emt 0:00:03]} f4 {[%emt 0:00:36]} 14. Bb2 {[%emt 0:00:01]} g5 {[%emt 0:00:05]} 15. b4 {[%emt 0:00:03]} Ncd7 {[%emt 0:00:05]} 16. Na4 {[%emt 0:00:19]} h5 {[%emt 0:00:20]} 17. c5 {[%emt 0:00:02]} g4 {[%emt 0:00:08]} 18. cxd6 {[%emt 0:00:03]} cxd6 {[%emt 0:00:09]} 19. Nc4 {[%emt 0:00:50]} b5 {[%emt 0:00:12]} 20. Nxd6 {[%emt 0:00:15]} bxa4 {[%emt 0:00:02]} 21. Qxa4 {[%emt 0:00:13]} Qb6+ {[%emt 0:00:11]} 0-1

[Event "Romanian Team Blitz Open 2022"]
[Site "Sebes"]
[Date "2022.12.04"]
[Round "7.1"]
[White "Anton, Teodor"]
[Black "Lupulescu, Constantin"]
[Result "0-1"]
[ECO "D51"]
[WhiteElo "2438"]
[BlackElo "2591"]
[Annotator "TA"]
[PlyCount "84"]
[EventDate "2022.12.04"]
[EventType "blitz"]
[EventCountry "ROU"]
[SourceTitle "playchess.com"]
[Source "ChessBase"]
[SourceQuality "1"]
[TimeControl "180+2"]

{[%evp 12,84,14,32,53,63,50,34,35,31,34,27,37,0,10,0,0,0,0,-19,-29,-42,-33,-55,47,-40,-3,-108,-92,-104,-109,-100,-88,-194,-193,-194,-189,-236,-227,-231,-233,-252,-252,-226,-228,-221,-197,-191,-193,-202,-199,-321,-300,-357,-345,-361,-314,-293,-270,-402,-396,-398,-396,-389,-385,-362,-366,-402,-397,-410,-408,-504,-500,-482,-481]} 1. Nf3 {[%emt 0:00:02]} d5 {[%emt 0:00:01]} 2. d4 {[%emt 0:00:01]} Nf6 {[%emt 0:00:02]} 3. c4 {[%emt 0:00:02]} e6 {[%emt 0:00:01]} 4. Nc3 {[%emt 0:00:03]} Nbd7 {[%emt 0:00:01]} 5. Bg5 {[%emt 0:00:06]} c6 {[%emt 0:00:03]} 6. e3 {[%emt 0:00:02]} h6 {[%emt 0:00:01]} 7. Bh4 {[%emt 0:00:02]} g5 {[%emt 0:00:01] D51: Queen's Gambit Declined: 4 Bg5 Nbd7 sidelines.} 8. Bg3 {[%emt 0:00:02]} Nh5 {[%emt 0:00:01]} 9. Bd3 {[%emt 0:00:15]} Nxg3 {[%emt 0:00:02] White is slightly better.} 10. hxg3 {[%emt 0:00:02]} Bg7 {[%emt 0:00:06]} 11. Qc2 {[%emt 0:00:05]} Qe7 {[%emt 0:00:14] [#]} 12. O-O $146 {[%emt 0:00:11]} ({Predecessor:} 12. O-O-O O-O 13. Kb1 b5 14. cxd5 cxd5 15. Bxb5 Rb8 16. Ka1 Nb6 17. Ne5 Bb7 18. f4 {1-0 (55) Martirosyan,H (2632)-Nihal,S (2620) Chess.com INT 2021}) 12... O-O {[%emt 0:00:08]} 13. Rfe1 {[%emt 0:00:08]} dxc4 {[%emt 0:00:41]} 14. Bxc4 {[%emt 0:00:01]} b6 {[%emt 0:00:01]} 15. e4 {[%emt 0:00:06]} g4 {[%emt 0:00:09]} 16. Nh2 {[%emt 0:00:02]} h5 {[%emt 0:00:12]} 17. e5 {[%emt 0:00:18]} Bb7 {[%emt 0:00:04]} (17... c5 $1 $15 18. Ne2 cxd4) 18. Qe4 {[%emt 0:00:03]} ({White should try} 18. f4 $1 $14) 18... Rfd8 {[%emt 0:00:15]} (18... Rfb8 $5 {[%cal Rc6c5]}) 19. Bd3 {[%emt 0:00:02] [#]} (19. Rad1 $11 {keeps the balance.}) 19... Nf8 $1 $36 {[%emt 0:00:01][%mdl 2048] Black is in control. White is now going downhill.} 20. Qe3 {[%emt 0:00:33]} c5 {[%emt 0:00:02]} 21. dxc5 {[%emt 0:00:09]} Qxc5 {[%emt 0:00:04]} 22. Qe2 {[%emt 0:00:14]} (22. Qxc5 $17 {was called for.} bxc5 23. Be4 Bxe4 24. Rxe4) 22... Nd7 $19 {[%emt 0:00:10][%cal Bf8d7,Bd7e5,Be5c4][%mdl 32]} ({Weaker is} 22... Qc6 23. Be4 Qc7 24. Bxb7 Qxb7 25. f4 $11) 23. Be4 {[%emt 0:00:20]} Bxe4 {[%emt 0:00:03]} 24. Qxe4 {[%emt 0:00:01]} (24. Nxe4 $142 Qxe5 25. Rab1) 24... Nxe5 {[%emt 0:00:06] Hoping for ...Nd3.} (24... Bxe5 25. Rad1 Bxc3 26. bxc3) 25. Rad1 {[%emt 0:00:03]} Rac8 {[%emt 0:00:20]} 26. Nf1 {[%emt 0:00:02]} Nc4 {[%emt 0:00:05]} 27. Qb7 {[%emt 0:00:25]} Rxd1 {[%emt 0:00:14]} (27... Nxb2 $2 {is the wrong capture.} 28. Ne4 Qf8 29. Rxd8 Qxd8 30. Qxa7) 28. Nxd1 {[%emt 0:00:17]} Qc7 {[%emt 0:00:03] Inhibits b3.} 29. Qa6 {[%emt 0:00:06]} Nxb2 {[%emt 0:00:01]} ({And not} 29... Bxb2 30. Nxb2 Nxb2 31. Qb5 $15) 30. Nxb2 {[%emt 0:00:01]} Bxb2 {[%emt 0:00:02]} 31. Ne3 {[%emt 0:00:03]} (31. Qb5 {might work better.} Bc3 32. Rc1) 31... Bd4 {[%emt 0:00:03]} 32. Qb5 {[%emt 0:00:07]} Qc5 {[%emt 0:00:08]} 33. Qd7 {[%emt 0:00:02]} Rc7 {[%emt 0:00:05]} 34. Qd8+ {[%emt 0:00:01]} Kg7 {[%emt 0:00:03] White must now prevent ...Rc8.} 35. Kh2 {[%emt 0:00:05]} (35. Nf5+ $142 Qxf5 36. Qxd4+ Qf6 37. Qa4) 35... Bf6 {[%emt 0:00:02]} 36. Qd3 {[%emt 0:00:03]} Qc3 {[%emt 0:00:01]} 37. Qd1 {[%emt 0:00:03]} Qd4 {[%emt 0:00:07]} 38. Qe2 {[%emt 0:00:02]} Qb2 {[%emt 0:00:01]} 39. Qxb2 {[%emt 0:00:05]} Bxb2 {[%emt 0:00:01]} 40. Re2 {[%emt 0:00:01]} Bd4 {[%emt 0:00:01]} 41. f3 {[%emt 0:00:02]} gxf3 {[%emt 0:00:03]} 42. gxf3 {[%emt 0:00:01]} Bxe3 {[%emt 0:00:02] Weighted Error Value: White=0.30/Black=0.09 (flawless)} 0-1

[Event "Romanian Team Blitz Open 2022"]
[Site "Sebes"]
[Date "2022.12.04"]
[Round "7.2"]
[White "Jianu, Vlad-Cristian"]
[Black "David, Alexandru-Vasile"]
[Result "1-0"]
[ECO "A30"]
[WhiteElo "2516"]
[BlackElo "2404"]
[Annotator "TA"]
[PlyCount "111"]
[EventDate "2022.12.04"]
[EventType "blitz"]
[EventCountry "ROU"]
[SourceTitle "playchess.com"]
[Source "ChessBase"]
[SourceQuality "1"]
[TimeControl "180+2"]

{[%evp 16,111,2,0,0,0,3,0,2,2,2,0,15,0,10,0,16,13,18,-5,-2,-8,66,0,0,0,43,4,33,0,27,0,43,0,41,0,95,90,200,188,187,183,177,126,281,168,230,235,209,198,280,219,229,89,89,56,104,0,0,0,0,0,0,0,0,0,0,0,26,2,80,90,151,134,329,347,341,0,285,0,331,352,347,351,346,291,4875,4644,6008,4689,8473,7449,6416,6097,6079,5165,1706,1314]} 1. Nf3 {[%emt 0:00:01]} g6 {[%emt 0:00:06]} 2. g3 {[%emt 0:00:03]} Bg7 {[%emt 0:00:01]} 3. Bg2 {[%emt 0:00:01]} c5 {[%emt 0:00:03]} 4. O-O {[%emt 0:00:02]} Nc6 {[%emt 0:00:01]} 5. c4 {[%emt 0:00:07]} Nh6 {[%emt 0:00:03]} 6. Nc3 {[%emt 0:00:09]} O-O {[%emt 0:00:07]} 7. d3 {[%emt 0:00:06]} Nf5 {[%emt 0:00:05]} 8. Rb1 {[%emt 0:00:05]} a6 {[%emt 0:00:16]} 9. a3 {[%emt 0:00:02]} Rb8 {[%emt 0:00:03] A30: Symmetrical English: Double Fianchetto and Hedgehog.} 10. Bd2 {[%emt 0:00:03]} b5 {[%emt 0:00:04]} 11. cxb5 {[%emt 0:00:03]} axb5 {[%emt 0:00:02] The position is equal.} 12. b4 {[%emt 0:00:02]} cxb4 13. axb4 {[%emt 0:00:00]} d6 {[%emt 0:00:21]} 14. e3 {[%emt 0:00:15]} e6 {[%emt 0:00:48]} 15. Qb3 {[%emt 0:00:36] [#]} Qb6 $146 {[%emt 0:00:01]} ({Predecessor:} 15... d5 16. Ne2 Re8 17. Rfc1 Rb6 18. Ne1 Bb7 19. Rc2 Qd7 20. Ra2 Ra8 21. Rxa8+ Bxa8 {½-½ (28) Kempinski,R (2619)-Babula,V (2604) Saint Vincent 2005}) 16. Rfc1 {[%emt 0:00:02]} Bb7 {[%emt 0:00:02]} 17. Ne2 {[%emt 0:00:09]} Rfc8 {[%emt 0:00:27]} 18. Rc2 {[%emt 0:00:31]} Nce7 {[%emt 0:00:15]} (18... Ne5 $11 19. Nxe5 Bxe5) 19. Rbc1 {[%emt 0:00:02]} (19. e4 $14) 19... Rxc2 $11 {[%emt 0:00:03]} 20. Rxc2 {[%emt 0:00:04]} Ra8 {[%emt 0:00:00] Threatens to win with ...Bd5.} 21. Ra2 {[%emt 0:00:08]} (21. e4 {feels hotter.} Ra1+ 22. Bf1 Qa7 23. Bc3) 21... Rc8 {[%emt 0:00:01] Hoping for ...Bd5.} (21... Rxa2 {simplifies} 22. Qxa2 Nc6 23. Ne1 Qc7) 22. Rc2 {[%emt 0:00:01]} Ra8 {[%emt 0:00:19]} 23. Ra2 {[%emt 0:00:01]} (23. e4 {looks sharper.} Ra1+ 24. Bf1 Qa7 25. Bc3) 23... Rc8 {[%emt 0:00:04]} 24. Rc2 {[%emt 0:00:19]} Ra8 {[%emt 0:00:01]} 25. Ra2 {[%emt 0:00:00]} (25. e4 {is interesting.} Ra1+ 26. Bf1 Qa7 27. Bc3) 25... Rd8 {[%emt 0:00:10]} (25... Rc8 $11 26. e4 Nd4 27. Nfxd4 Bxd4) 26. e4 $16 {[%emt 0:00:02]} Nd4 {[%emt 0:00:07]} (26... Nh6 $16 {was called for.}) 27. Nexd4 $18 {[%emt 0:00:07]} Bxd4 {[%emt 0:00:01]} 28. Nxd4 {[%emt 0:00:10]} Qxd4 {[%emt 0:00:02]} 29. Bg5 {[%emt 0:00:11]} (29. Be3 $1 $18 {[%cal Re3d4]} Qe5 30. Ra7) 29... Kf8 $2 {[%emt 0:00:01]} (29... h6 $16 30. Be3 (30. Bxe7 Rd7 $16) (30. Bxh6 Nc6 $16) 30... Qh8) 30. Bh6+ {[%emt 0:00:03] This pair of bishops is nice.} (30. Be3 $142 Qe5 31. d4) 30... Ke8 {[%emt 0:00:02]} (30... Kg8 $142) 31. Be3 {[%emt 0:00:02]} Qg7 {[%emt 0:00:17]} 32. Ra7 {[%emt 0:00:39] Inhibits g5.} Bc6 {[%emt 0:00:13]} (32... Rd7 {was worth a try.} 33. Qc2 Qh8) 33. Qc2 {[%emt 0:00:00][%cal Oe4e5] aiming for e5!} Rc8 {[%emt 0:00:00] Prevents e5.} 34. h4 {[%emt 0:00:00]} (34. d4 $18 {and White stays clearly on top.}) 34... Bd7 $16 {[%emt 0:00:00]} 35. Qa2 {[%emt 0:00:00] And now d4 would win. White has more active pieces.} Qc3 {[%emt 0:00:00]} (35... Nc6 $14) 36. Qd2 {[%emt 0:00:00]} (36. Qa6 $1 $16 {[%cal Ra6d6]} Qc6 37. Qa5) 36... Qxd2 $11 {[%emt 0:00:02]} 37. Bxd2 {[%emt 0:00:00]} Rc2 {[%emt 0:00:02]} 38. Bf4 {[%emt 0:00:00]} e5 {[%emt 0:00:01]} 39. Bg5 {[%emt 0:00:00] Bxe7 is the strong threat.} Nc8 {[%emt 0:00:09]} 40. Rb7 {[%emt 0:00:02]} h5 {[%emt 0:00:00]} 41. f4 {[%emt 0:00:05]} Rc3 {[%emt 0:00:00]} 42. fxe5 {[%emt 0:00:01]} (42. Bf1 $5 {[%cal Rf4e5]}) 42... dxe5 {[%emt 0:00:00] [#]} (42... Rxd3 $11 {remains equal.} 43. exd6 Rxd6) 43. Bf1 $1 $16 {[%emt 0:00:02]} Nd6 {[%emt 0:00:01]} ({Black should try} 43... Rc6) 44. Rb8+ {[%emt 0:00:02]} Rc8 $2 {[%emt 0:00:01]} (44... Nc8 $16 45. Bf6 Rb3 46. Bxe5 Rxb4) 45. Rb6 $18 {[%emt 0:00:00]} Rc6 {[%emt 0:00:01]} 46. Rb8+ {[%emt 0:00:01]} Rc8 {[%emt 0:00:00]} 47. Rb6 {[%emt 0:00:02]} Rc6 {[%emt 0:00:01] [#]} 48. Rxc6 {[%emt 0:00:01]} Bxc6 {[%emt 0:00:01][%mdl 4096] Endgame KBB-KBN} 49. Bf6 {[%emt 0:00:01]} Kd7 {[%emt 0:00:05]} 50. Bxe5 {[%emt 0:00:01]} f5 $2 {[%emt 0:00:06]} (50... Ke7 51. Bf4 Ne8) 51. Bxd6 {[%emt 0:00:08] White is clearly winning.} Kxd6 {[%emt 0:00:00]} 52. exf5 {[%emt 0:00:02]} gxf5 {[%emt 0:00:01]} 53. Kf2 {[%emt 0:00:00]} Ke5 {[%emt 0:00:05]} 54. Ke3 {[%emt 0:00:01]} Bd7 {[%emt 0:00:03]} 55. Be2 {[%emt 0:00:01]} Be8 {[%emt 0:00:01]} 56. Bf3 {[%emt 0:00:18] Weighted Error Value: White=0.40/Black=0.34} 1-0

[Event "Romanian Team Blitz Open 2022"]
[Site "Sebes"]
[Date "2022.12.04"]
[Round "7.3"]
[White "Ghimpu, Samuel-Timotei"]
[Black "Parligras, Mircea-Emilian"]
[Result "1/2-1/2"]
[ECO "C54"]
[WhiteElo "2455"]
[BlackElo "2567"]
[Annotator "TA"]
[PlyCount "91"]
[EventDate "2022.12.04"]
[EventType "blitz"]
[EventCountry "ROU"]
[SourceTitle "playchess.com"]
[Source "ChessBase"]
[SourceQuality "1"]
[TimeControl "180+2"]

{[%evp 14,91,24,14,19,13,19,0,12,6,12,14,14,9,22,22,22,22,18,15,28,0,0,0,0,0,0,0,20,7,47,27,58,52,59,34,55,55,62,16,18,8,20,-13,-14,-2,-10,-2,53,-15,0,-20,-17,-25,0,0,0,8,32,37,279,289,288,268,255,283,686,297,252,0,0,0,0,0,0,0,0,0,0,0]} 1. e4 {[%emt 0:00:04]} e5 {[%emt 0:00:01]} 2. Nf3 {[%emt 0:00:01]} Nc6 {[%emt 0:00:01]} 3. Bc4 {[%emt 0:00:02]} Bc5 {[%emt 0:00:01]} 4. c3 {[%emt 0:00:01]} Nf6 {[%emt 0:00:02]} 5. d3 {[%emt 0:00:02]} a6 {[%emt 0:00:02]} 6. Nbd2 {[%emt 0:00:03][%cal Bb1d2,Bd2f1,Bf1g3][%mdl 32]} d6 {[%emt 0:00:02]} 7. h3 {[%emt 0:00:07]} Ba7 {[%emt 0:00:03]} 8. Bb3 {[%emt 0:00:05]} h6 {[%emt 0:00:04] C54: Giuoco Piano: 4 c3 Nf6, main lines with 5 d4 and 5 d3.} 9. Nf1 {[%emt 0:00:03]} Be6 {[%emt 0:00:02]} 10. Ng3 {[%emt 0:00:04]} O-O {[%emt 0:00:12]} 11. O-O {[%emt 0:00:04]} Bxb3 {[%emt 0:00:03]} 12. Qxb3 {[%emt 0:00:27]} Qd7 {[%emt 0:00:01]} 13. Be3 {[%emt 0:00:18]} (13. Qxb7 $2 Rfb8 $19) (13. Re1 {is more complex.} Rfe8 14. Bd2 d5 15. Nf5) 13... Ne7 {[%emt 0:00:16] [#]} 14. Bxa7 $146 {[%emt 0:00:27]} (14. Qxb7 $2 {is the wrong capture.} Bxe3 15. Qb3 (15. fxe3 $2 {loses.} Rfb8 $19) 15... Bf4 $19) ({Predecessor:} 14. d4 Ng6 15. Z0 {0-1 (15) Adhiban,B (2624)-Kuljasevic,D (2564) Konya 2014}) 14... Rxa7 {[%emt 0:00:02]} 15. d4 {[%emt 0:00:01]} Ng6 {[%emt 0:00:06]} 16. Rad1 {[%emt 0:00:03]} Qb5 {[%emt 0:00:10]} 17. Rfe1 {[%emt 0:00:30]} Qxb3 18. axb3 {[%emt 0:00:01]} Raa8 {[%emt 0:00:06]} 19. Nd2 {[%emt 0:00:25][%cal Bf3d2,Bd2c4,Bc4a5,Ba5c6][%mdl 32]} Rfe8 {[%emt 0:00:09]} 20. f3 {[%emt 0:00:04]} Rad8 {[%emt 0:00:20]} 21. dxe5 {[%emt 0:00:20]} dxe5 {[%emt 0:00:07]} 22. Nc4 {[%emt 0:00:02]} b5 {[%emt 0:00:23]} 23. Na5 {[%emt 0:00:10]} Nf4 {[%emt 0:00:10]} 24. Nc6 {[%emt 0:00:10]} Rxd1 {[%emt 0:00:06]} 25. Rxd1 {[%emt 0:00:01]} Re6 {[%emt 0:00:01] [#]} 26. Rd8+ {[%emt 0:00:09]} (26. Nf5 $1 $14) 26... Kh7 $11 {[%emt 0:00:03]} 27. Nb4 {[%emt 0:00:03]} a5 {[%emt 0:00:13]} 28. Nd5 {[%emt 0:00:01]} N6xd5 {[%emt 0:00:08]} 29. exd5 {[%emt 0:00:01][%mdl 4096] Endgame KRN-KRN} Rg6 {[%emt 0:00:21]} 30. Kh2 {[%emt 0:00:05]} f5 {[%emt 0:00:22]} (30... a4 $11) 31. Rf8 {[%emt 0:00:05] [#]} ({Better is} 31. Rd7 $1 $14) 31... Nxg2 $1 {[%emt 0:00:04]} 32. Rxf5 {[%emt 0:00:03]} (32. Kxg2 $5 {[%cal Rf8f5]} f4 33. Rc8 $11) 32... Nh4 {[%emt 0:00:05]} 33. Rf7 $1 {[%emt 0:00:00]} Rf6 {[%emt 0:00:05]} 34. Rxc7 {[%emt 0:00:05]} Nxf3+ {[%emt 0:00:04]} 35. Kg2 {[%emt 0:00:01]} Nh4+ {[%emt 0:00:01]} 36. Kg1 $1 {[%emt 0:00:02]} Rg6 $2 {[%emt 0:00:07]} (36... Rf3 $1 $14 37. Ne4 Rd3) 37. Kf2 $18 {[%emt 0:00:02]} Rf6+ {[%emt 0:00:01]} 38. Ke2 {[%emt 0:00:01]} Rg6 {[%emt 0:00:06]} 39. Ne4 {[%emt 0:00:01] Strongly threatening d6.} Rg2+ $2 {[%emt 0:00:02]} (39... Nf5 40. Kf2 Ra6) 40. Kd3 {[%emt 0:00:03]} (40. Kf1 $142 {Hoping for d6.} Rh2 41. d6 Rh1+ 42. Kf2) 40... Nf3 {[%emt 0:00:07]} 41. d6 $2 {[%emt 0:00:02]} (41. Ke3 $18 Nh4 42. d6 Nf5+ 43. Kd3 Nxd6 44. Nxd6) 41... Ne1+ $11 {[%emt 0:00:01] The position is equal.} 42. Ke3 {[%emt 0:00:01]} Nc2+ {[%emt 0:00:01]} 43. Kf3 {[%emt 0:00:01]} Ne1+ {[%emt 0:00:01]} 44. Ke3 {[%emt 0:00:04]} Nc2+ {[%emt 0:00:01]} 45. Kd3 {[%emt 0:00:03]} Ne1+ {[%emt 0:00:01]} 46. Ke3 {[%emt 0:00:03] Weighted Error Value: White=0.31/Black=0.30} 1/2-1/2

[Event "Romanian Team Blitz Open 2022"]
[Site "Sebes"]
[Date "2022.12.04"]
[Round "7.4"]
[White "Gavrilescu, David"]
[Black "Talu, Mircea"]
[Result "0-1"]
[ECO "B15"]
[WhiteElo "2523"]
[BlackElo "2327"]
[Annotator "TA"]
[PlyCount "100"]
[EventDate "2022.12.04"]
[EventType "blitz"]
[EventCountry "ROU"]
[SourceTitle "playchess.com"]
[Source "ChessBase"]
[SourceQuality "1"]
[TimeControl "180+2"]

{[%evp 16,100,32,26,39,24,26,18,29,17,18,15,13,6,22,18,13,5,27,-33,-24,-22,-18,-12,-16,-87,-38,-68,-69,-78,-45,-41,-47,-78,0,-15,0,-66,0,-76,-52,-217,-210,-217,-212,-246,-239,-241,-241,-261,-256,-323,-300,-562,-571,-650,-662,-650,-657,-650,-651,-689,-697,-722,-703,-739,-712,-914,-858,-888,-806,-959,-742,-796,-735,-6290,-4883,-6187,-5389,-6295,-5993,-29972,-29972,-29983,-29980,-29985,-29986]} 1. e4 {[%emt 0:00:02]} g6 {[%emt 0:00:04]} 2. d4 {[%emt 0:00:01]} Bg7 {[%emt 0:00:01]} 3. Nf3 {[%emt 0:00:02]} c6 {[%emt 0:00:02]} 4. Bd3 {[%emt 0:00:02]} d5 {[%emt 0:00:01]} 5. Nbd2 {[%emt 0:00:02]} dxe4 {[%emt 0:00:01]} 6. Nxe4 {[%emt 0:00:01]} Nf6 {[%emt 0:00:16]} 7. Nxf6+ {[%emt 0:00:03]} exf6 {[%emt 0:00:01]} 8. h3 {[%emt 0:00:02]} O-O {[%emt 0:00:02]} 9. O-O {[%emt 0:00:02]} Re8 {[%emt 0:00:02] B15: Caro-Kann: 3 Nc3: 3...g6 and 3...dxe4 4 Nxe4 Nf6 5 Nxf6+ exf6.} 10. Bf4 {[%emt 0:00:05]} Nd7 {[%emt 0:00:09]} 11. Qd2 {[%emt 0:00:09]} Nf8 {[%emt 0:00:15] The position is equal.} 12. c3 {[%emt 0:00:10]} Be6 {[%emt 0:00:03] [#]} 13. c4 $146 {[%emt 0:00:13]} ({Predecessor:} 13. Rfe1 Qd7 14. Bh6 Rad8 15. Bxg7 Kxg7 16. Qc2 Bd5 17. Be4 Ne6 18. Bxd5 Qxd5 19. Rad1 {½-½ (54) Hansen,S (2274)-Hamley,R (2039) Chess.com INT 2021}) 13... Qd7 {[%emt 0:00:05]} 14. Rad1 {[%emt 0:00:07]} Bf5 {[%emt 0:00:07]} 15. Bxf5 {[%emt 0:00:24]} Qxf5 {[%emt 0:00:02]} 16. d5 {[%emt 0:00:01]} Rad8 {[%emt 0:00:02]} 17. d6 {[%emt 0:00:07]} (17. Nd4 $11 Qd7 18. Ne2) 17... Re4 $15 {[%emt 0:00:12][%csl LRc4,LRf4]} 18. Bg3 {[%emt 0:00:07]} Rxc4 {[%emt 0:00:03]} 19. Rfe1 {[%emt 0:00:07]} Ne6 {[%emt 0:00:34]} 20. b3 {[%emt 0:00:09] [#]} (20. Qe2 $11 Rc2 21. Qe3) 20... Rc5 {[%emt 0:00:04]} (20... Rc2 $6 21. Qe3 (21. Qb4 Rd7 $11) 21... Rc5 22. Nd4 Nxd4 23. Qe7 $14) (20... Re4 $1 $17) 21. Qb4 {[%emt 0:00:04]} Rb5 {[%emt 0:00:05]} 22. Qa4 {[%emt 0:00:04]} Ra5 {[%emt 0:00:03]} (22... Qc5 $5 {[%cal Rb5b4]}) 23. Qb4 {[%emt 0:00:01]} Qb5 {[%emt 0:00:20]} (23... Rxa2 24. Qxb7 Bf8 25. Qxc6 $14) 24. Qg4 {[%emt 0:00:07] Threatens to win with Rxe6.} Qf5 {[%emt 0:00:08]} (24... Rxa2 $6 25. Nd4 f5 26. Qh4 $11) (24... Qh5 $17 25. Qc4 Rc5) 25. Qb4 $1 $11 {[%emt 0:00:36]} Qb5 {[%emt 0:00:03]} (25... Rxa2 26. Qxb7 Bf8 27. Qxc6 $14) (25... Rd7 $11) 26. Qg4 $15 {[%emt 0:00:08] Black must now prevent Rxe6.} Qf5 {[%emt 0:00:18]} (26... Rxa2 27. Nd4 f5 28. Qh4 Bxd4 29. Rxe6 $18) ({Black should play} 26... Qh5 $15 27. Qc4 Rc5) 27. Qc4 {[%emt 0:00:07]} (27. Qb4 $1 $11 {remains equal.}) 27... Bf8 $17 {[%emt 0:00:30]} (27... Rxa2 $2 28. Nd4 (28. d7 c5 $16) 28... Nxd4 29. Qxd4 $18) 28. d7 $2 {[%emt 0:00:09] [#] This costs White the game.} ({White should try} 28. Qc3 $15) 28... Rd5 $1 $19 {[%emt 0:00:03]} (28... Rxa2 $2 29. Nd4 Nxd4 30. Qxd4 $18) 29. Rxd5 {[%emt 0:00:14]} Qxd5 {[%emt 0:00:01]} 30. Qc3 {[%emt 0:00:03]} Bg7 {[%emt 0:00:07]} ({Not} 30... Qxd7 31. Qxf6 Be7 32. Qb2 $17) 31. Qe3 {[%emt 0:00:08]} a6 {[%emt 0:00:03]} ({Inferior is} 31... Qxd7 32. Qxa7 g5 33. Qa3) 32. Nd2 {[%emt 0:00:06]} Qxd7 {[%emt 0:00:05]} 33. Nc4 {[%emt 0:00:01]} b5 {[%emt 0:00:04]} 34. Nd6 {[%emt 0:00:03]} (34. Nb2 {was worth a try.}) 34... f5 {[%emt 0:00:05]} 35. Rd1 {[%emt 0:00:05]} f4 {[%emt 0:00:01]} 36. Bxf4 {[%emt 0:00:06]} Nxf4 {[%emt 0:00:01]} 37. Qxf4 {[%emt 0:00:05]} Bf8 {[%emt 0:00:02][%cal Rf8d6]} 38. g3 {[%emt 0:00:05]} Bxd6 {[%emt 0:00:01]} 39. Qf3 {[%emt 0:00:01]} Qc7 {[%emt 0:00:03]} 40. Rc1 {[%emt 0:00:01]} c5 {[%emt 0:00:02]} 41. Re1 {[%emt 0:00:01]} Bf8 {[%emt 0:00:03]} 42. h4 {[%emt 0:00:01]} h5 {[%emt 0:00:01] And now ...c4 would win.} 43. Qe4 {[%emt 0:00:02]} Qd6 {[%emt 0:00:02]} 44. Re2 {[%emt 0:00:02]} Qd1+ {[%emt 0:00:01]} 45. Kh2 {[%emt 0:00:00]} Rd2 {[%emt 0:00:03]} 46. Rxd2 {[%emt 0:00:02]} Qxd2 {[%emt 0:00:01]} 47. Kg2 {[%emt 0:00:01]} Qxa2 {[%emt 0:00:01] Hoping for ...c4.} 48. Qd5 {[%emt 0:00:01]} c4 {[%emt 0:00:03] Black mates.} 49. bxc4 {[%emt 0:00:01]} Qxc4 {[%emt 0:00:01]} 50. Qb7 {[%emt 0:00:03]} b4 {[%emt 0:00:02] Weighted Error Value: White=0.38/Black=0.13 (very precise)} 0-1